bitfinex/quotes_ETHUSD_20251004
["timestamp","ask_amount","ask_price","bid_price","bid_amount"]
[1759614544083,0.002,4483.2,4483.1,47.32979522]
[1759614544674,0.002,4483.2,4483.1,47.10690222]
[1759614545172,0.002,4483.2,4483.1,46.47868322]
[1759614545805,0.002,4483.2,4483.1,46.91918322]
[1759614546171,0.002,4483.2,4483.1,47.44725122]
[1759614546370,0.002,4483.2,4483.1,47.00675122]
[1759614547064,0.002,4483.2,4483.1,52.78668622]
[1759614547282,0.002,4483.2,4483.1,51.11375122]
[1759614548195,0.002,4483.2,4483.1,51.17846722]
[1759614549676,0.002,4483.2,4483.1,50.77746722]
[1759614550273,0.4023,4483.8,4483.7,2.23030086]
[1759614550492,0.4023,4483.8,4483.7,7.14330086]
[1759614551283,0.4023,4483.8,4483.7,7.25450086]
[1759614557478,0.002,4484.1,4483.9,2.23018806]
[1759614557479,0.4483,4484.1,4483.9,2.23018806]
[1759614557667,0.002,4484.1,4484.0,2.512]
[1759614558261,0.4483,4484.1,4484.0,2.512]
[1759614563285,0.002,4484.1,4484.0,2.512]
[1759614563579,0.4547,4484.1,4484.0,2.512]
[1759614571810,0.002,4484.1,4484.0,2.512]
[1759614572330,0.002,4484.1,4484.0,4.74215165]
[1759614594040,0.002,4484.1,4484.0,7.14215165]
[1759614595441,0.002,4484.1,4484.0,7.60275165]
[1759614595747,0.002,4484.1,4484.0,7.14215165]
[1759614597046,0.002,4484.1,4484.0,13.71392965]
[1759614597539,0.002,4484.1,4484.0,14.16287565]
[1759614597747,0.002,4484.1,4484.0,9.55893565]
[1759614599433,0.002,4484.1,4484.0,9.55688965]
[1759614600674,0.002,4484.1,4484.0,9.86922865]
[1759614601168,0.002,4484.1,4484.0,9.55688965]
[1759614602632,0.002,4484.1,4484.0,9.86379965]
[1759614602831,0.002,4484.1,4484.0,9.63347965]
[1759614604373,0.4386,4484.1,4484.0,9.63347965]
[1759614608780,0.4386,4484.1,4484.0,9.61118265]
[1759614609381,0.4386,4484.1,4484.0,9.30427265]
[1759614609818,0.4386,4484.1,4484.0,9.61466865]
[1759614610785,0.4386,4484.1,4484.0,9.61671465]
[1759614612580,0.4386,4484.1,4484.0,7.14215165]
[1759614626241,0.4386,4484.1,4484.0,8.33942464]
[1759614631520,0.4386,4484.1,4484.0,10.89989064]
[1759614632530,0.4386,4484.1,4484.0,8.33942464]
[1759614632697,0.4386,4484.1,4484.0,10.89989064]
[1759614633597,0.4386,4484.1,4484.0,11.06404064]
[1759614634437,0.4386,4484.1,4484.0,25.56404064]
[1759614635631,0.4386,4484.1,4484.0,22.83942464]
[1759614635930,0.4386,4484.1,4484.0,25.58632964]
[1759614636734,0.4386,4484.1,4484.0,22.83942464]
[1759614636922,0.4386,4484.1,4484.0,25.58632964]
[1759614637733,0.4386,4484.1,4484.0,8.33942464]
[1759614637914,0.4386,4484.1,4484.0,11.08632964]
[1759614638115,0.4386,4484.1,4484.0,25.58632964]
[1759614640040,0.4386,4484.1,4484.0,25.58373064]
[1759614640412,0.002,4484.1,4484.0,27.86134962]
[1759614640617,0.002,4484.1,4484.0,28.88454962]
[1759614640938,0.002,4484.1,4484.0,44.04579462]
[1759614641820,0.002,4484.1,4484.0,44.14454062]
[1759614642637,0.002,4484.1,4484.0,43.75717062]
[1759614642837,0.002,4484.1,4484.0,25.66684362]
[1759614643044,0.002,4484.1,4484.0,43.75717062]
[1759614643946,0.002,4484.1,4484.0,42.55989763]
[1759614644409,0.002,4484.1,4484.0,35.24357663]
[1759614645049,0.002,4484.1,4484.0,36.65974363]
[1759614645825,0.002,4484.1,4484.0,36.15751863]
[1759614646015,0.002,4484.1,4484.0,37.01462863]
[1759614647050,0.002,4484.1,4484.0,37.81462863]
[1759614647446,0.002,4484.1,4484.0,37.02800163]
[1759614648269,0.002,4484.1,4484.0,38.22880408]
[1759614648967,0.002,4484.1,4484.0,37.86739208]
[1759614649158,0.002,4484.1,4484.0,38.21369908]
[1759614651209,0.002,4484.1,4484.0,39.14223508]
[1759614652170,0.002,4484.1,4484.0,40.02928408]
[1759614653173,0.002,4484.1,4484.0,25.67037308]
[1759614653373,0.002,4484.1,4484.0,40.02928408]
[1759614655299,0.002,4484.1,4484.0,25.67037308]
[1759614655499,0.002,4484.1,4484.0,40.02928408]
[1759614655796,0.002,4484.1,4484.0,40.48478408]
[1759614655969,0.002,4484.1,4484.0,40.02928408]
[1759614656298,0.002,4484.1,4484.0,40.66703408]
[1759614657372,0.002,4484.1,4484.0,39.86703408]
[1759614657572,0.002,4484.1,4484.0,39.63076808]
[1759614658000,0.002,4484.1,4484.0,35.58026608]
[1759614658374,0.002,4484.1,4484.0,39.37497408]
[1759614658899,0.002,4484.1,4484.0,38.47320808]
[1759614659499,0.002,4484.1,4484.0,39.34061108]
[1759614660516,0.002,4484.1,4484.0,41.38621008]
[1759614660714,0.002,4484.1,4484.0,40.58621008]
[1759614661621,0.002,4484.1,4484.0,41.29470308]
[1759614661789,0.002,4484.1,4484.0,39.69470308]
[1759614663316,0.002,4484.1,4484.0,38.25944108]
[1759614663692,0.002,4484.1,4484.0,38.25641708]
[1759614664116,0.002,4484.1,4484.0,37.81781708]
[1759614664684,0.002,4484.1,4484.0,41.84415008]
[1759614665730,0.002,4484.1,4484.0,41.85248608]
[1759614667729,0.002,4484.1,4484.0,41.84415008]
[1759614668827,0.002,4484.1,4484.0,42.72296908]
[1759614670829,0.002,4484.1,4484.0,43.25808108]
[1759614671929,0.002,4484.1,4484.0,47.56814108]
[1759614672604,0.002,4484.1,4484.0,46.76155408]
[1759614672799,0.002,4484.1,4484.0,25.23177308]
[1759614673004,0.002,4484.1,4484.0,46.76155408]
[1759614674007,0.002,4484.1,4484.0,46.22655408]
[1759614674931,0.002,4484.1,4484.0,46.76320908]
[1759614675529,0.002,4484.1,4484.0,46.22820908]
[1759614675899,0.002,4484.1,4484.0,46.76320908]
[1759614676099,0.002,4484.1,4484.0,45.96120908]
[1759614677034,0.002,4484.1,4484.0,47.55738108]
[1759614677197,0.002,4484.1,4484.0,47.02238108]
[1759614677922,0.002,4484.1,4484.0,47.57075408]
[1759614678326,0.002,4484.1,4484.0,46.76875408]
[1759614678636,0.002,4484.1,4484.0,45.05653408]
[1759614678803,0.002,4484.1,4484.0,44.73265308]
[1759614679004,0.002,4484.1,4484.0,45.08458508]
[1759614679429,0.002,4484.1,4484.0,44.54958508]
[1759614680538,0.002,4484.1,4484.0,41.11802608]
[1759614680838,0.002,4484.1,4484.0,43.62902608]
[1759614681036,0.002,4484.1,4484.0,25.23077308]
[1759614681270,0.002,4484.1,4484.0,45.60213608]
[1759614681638,0.002,4484.1,4484.0,43.09113608]
[1759614681810,0.002,4484.1,4484.0,44.48613608]
[1759614682207,0.002,4484.1,4484.0,45.48940208]
[1759614682943,0.002,4484.1,4484.0,44.28859963]
[1759614683111,0.002,4484.1,4484.0,24.02997063]
[1759614683438,0.002,4484.1,4484.0,43.70166263]
[1759614684146,0.002,4484.1,4484.0,44.41108263]
[1759614685178,0.002,4484.1,4484.0,44.74523763]
[1759614685674,0.002,4484.1,4484.0,44.18794163]
[1759614686171,0.002,4484.1,4484.0,44.67974963]
[1759614686679,0.002,4484.1,4484.0,43.82121763]
[1759614687268,0.002,4484.1,4484.0,44.38736463]
[1759614688173,0.002,4484.1,4484.0,41.01846163]
[1759614688366,0.002,4484.1,4484.0,41.37479863]
[1759614689148,0.002,4484.1,4484.0,41.46401454]
[1759614689369,0.002,4484.1,4484.0,43.74417354]
[1759614690079,0.002,4484.1,4484.0,39.04568754]
[1759614690377,0.002,4484.1,4484.0,42.83683154]
[1759614691379,0.002,4484.1,4484.0,21.71918654]
[1759614691580,0.002,4484.1,4484.0,42.18339954]
[1759614692559,0.002,4484.1,4484.0,42.71839954]
[1759614693685,0.002,4484.1,4484.0,42.18379854]
[1759614694182,0.002,4484.1,4484.0,42.61889854]
[1759614694387,0.002,4484.1,4484.0,16.77718056]
[1759614694576,0.002,4484.1,4484.0,21.30535456]
[1759614695485,0.002,4484.1,4484.0,7.34156756]
[1759614695957,0.002,4484.1,4484.0,28.55269356]
[1759614696156,0.002,4484.1,4484.0,44.24273956]
[1759614696350,0.002,4484.1,4484.0,46.15399254]
[1759614696689,0.002,4484.1,4484.0,45.65655954]
[1759614697585,0.002,4484.1,4484.0,46.15795454]
[1759614698786,0.002,4484.1,4484.0,44.92108454]
[1759614699389,0.002,4484.1,4484.0,44.18426154]
[1759614699864,0.002,4484.1,4484.0,45.36341054]
[1759614700802,0.002,4484.1,4484.0,45.90418654]
[1759614701621,0.002,4484.1,4484.0,43.15051354]
[1759614701825,0.4305,4484.1,4484.0,42.75441854]
[1759614702197,0.4305,4484.1,4484.0,41.45441854]
[1759614703279,0.4305,4484.1,4484.0,38.94341854]
[1759614703512,0.4305,4484.1,4484.0,41.01546354]
[1759614703908,0.4305,4484.1,4484.0,39.61880854]
[1759614704114,0.4305,4484.1,4484.0,40.72371154]
[1759614705016,0.4305,4484.1,4484.0,42.16206254]
[1759614705910,0.002,4484.1,4484.0,25.12737589]
[1759614706078,0.4305,4484.1,4484.0,24.739321]
[1759614707211,0.4305,4484.1,4484.0,20.291587]
[1759614707403,0.4305,4484.1,4484.0,2.5112]
[1759614707573,0.861,4484.1,4484.0,2.6222]
[1759614708324,0.861,4484.1,4484.0,5.0222]
[1759614710319,1.17029601,4484.1,4484.0,5.0222]
[1759614711413,0.861,4484.1,4484.0,5.0222]
[1759614716545,3.20230191,4484.1,4484.0,4.911]
[1759614717814,0.9722,4484.1,4484.0,2.4]
[1759614718010,0.9722,4484.1,4484.0,4.911]
[1759614718351,1.51562125,4484.1,4484.0,2.4]
[1759614718549,1.51562125,4484.1,4484.0,4.911]
[1759614719045,3.74572316,4484.1,4484.0,4.911]
[1759614719628,3.74572316,4484.1,4484.0,2.4]
[1759614719831,2.23015484,4484.0,4483.8,0.001]
[1759614720008,2.23020138,4483.9,4483.8,0.001]
[1759614720209,2.65860138,4483.9,4483.8,0.001]
[1759614720558,3.32795064,4483.9,4483.8,0.001]
[1759614720902,1.09774926,4483.9,4483.8,0.001]
[1759614721102,1.693972,4483.9,4483.8,0.001]
[1759614723253,1.09774926,4483.9,4483.8,0.001]
[1759614734771,3.32795064,4483.9,4483.8,0.001]
[1759614736794,2.89955064,4483.9,4483.8,0.001]
[1759614737267,3.32795064,4483.9,4483.8,0.001]
[1759614737883,5.83895064,4483.9,4483.8,0.001]
[1759614743093,10.06895064,4483.9,4483.8,0.001]
[1759614743493,10.07095064,4483.9,4483.8,0.001]
[1759614747824,10.08625064,4483.9,4483.8,0.001]
[1759614748127,10.19745064,4483.9,4483.8,0.001]
[1759614752531,15.10224305,4483.9,4483.8,0.001]
[1759614758715,14.65854305,4483.9,4483.8,0.001]
[1759614758920,15.10134305,4483.9,4483.8,0.001]
[1759614760967,15.58140158,4483.9,4483.8,0.001]
[1759614761542,11.35140158,4483.9,4483.8,0.001]
[1759614771789,10.90860158,4483.9,4483.8,0.001]
[1759614772099,6.63740917,4483.9,4483.8,0.001]
[1759614772264,6.00380917,4483.9,4483.8,0.001]
[1759614772466,0.17324926,4483.9,4483.8,0.4522]
[1759614772696,0.002,4483.9,4483.8,0.5634]
[1759614773069,0.002,4483.9,4483.8,2.30974]
[1759614774083,0.002,4483.9,4483.8,4.53999112]
[1759614774287,0.002,4483.9,4483.8,6.93999112]
[1759614775003,0.002,4483.9,4483.8,4.70974]
[1759614777382,0.002,4483.9,4483.8,2.9634]
[1759614777812,0.002,4483.9,4483.8,17.4634]
[1759614783128,0.002,4483.9,4483.8,2.9634]
[1759614784179,0.002,4483.9,4483.8,5.19365112]
[1759614784586,0.002,4483.9,4483.8,2.9634]
[1759614786317,0.002,4483.9,4483.8,2.84101898]
[1759614786816,0.002,4483.9,4483.8,2.79365112]
[1759614787121,0.002,4483.9,4483.8,15.0634]
[1759614788617,0.002,4483.9,4483.8,17.29365112]
[1759614788919,0.002,4483.9,4483.8,19.69365112]
[1759614789918,0.002,4483.9,4483.8,19.24245112]
[1759614790119,0.002,4483.9,4483.8,21.5200701]
[1759614790719,0.002,4483.9,4483.8,41.5283411]
[1759614790926,1e-08,4484.1,4484.0,2.86375165]
[1759614791084,1e-08,4484.1,4484.0,19.6634005]
[1759614791925,1e-08,4484.1,4484.0,28.9792525]
[1759614792221,1e-08,4484.1,4484.0,43.4792525]
[1759614792398,1e-08,4484.1,4484.0,43.2272525]
[1759614792895,1e-08,4484.1,4484.0,43.2277025]
[1759614793928,1e-08,4484.1,4484.0,43.7921885]
[1759614794085,1e-08,4484.1,4484.0,43.5692955]
[1759614794892,1e-08,4484.1,4484.0,25.1082545]
[1759614795098,1e-08,4484.1,4484.0,43.5692955]
[1759614795903,1e-08,4484.1,4484.0,25.1082545]
[1759614796226,1e-08,4484.1,4484.0,43.7794865]
[1759614797126,1e-08,4484.1,4484.0,44.9329855]
[1759614797703,1e-08,4484.1,4484.0,43.7783965]
[1759614798744,1e-08,4484.1,4484.0,19.17761898]
[1759614798930,1e-08,4484.1,4484.0,16.77761898]
[1759614798931,0.44610001,4484.1,4484.0,16.77761898]
[1759614799106,0.44610001,4484.1,4484.0,2.51]
[1759614799711,0.44610001,4484.1,4484.0,4.91]
[1759614800244,0.44610001,4484.1,4484.0,2.51]
[1759614800446,0.44610001,4484.1,4484.0,4.91]
[1759614801432,0.44610001,4484.1,4484.0,2.4]
[1759614801633,0.44610001,4484.1,4484.0,2.51]
[1759614803950,0.44610001,4484.1,4483.8,0.1122]
[1759614804125,0.44610001,4484.1,4483.9,2.51]
[1759614804328,0.4424,4484.0,4483.9,4.91]
[1759614817586,0.4424,4484.0,4483.9,2.51]
[1759614822291,2.23010994,4484.1,4483.9,2.51]
[1759614822534,2.69585165,4484.0,4483.9,2.51]
[1759614829531,2.23020138,4483.9,4483.8,0.001]
[1759614829834,3.08780655,4483.9,4483.8,0.001]
[1759614833051,2.62210655,4483.9,4483.8,0.001]
[1759614833413,2.34140138,4483.9,4483.8,0.001]
[1759614835486,2.79990138,4483.9,4483.8,0.001]
[1759614835838,0.1112,4483.9,4483.8,0.001]
[1759614838255,0.5697,4483.9,4483.8,0.001]
[1759614839161,2.79990138,4483.9,4483.8,0.001]
[1759614841174,2.79990138,4483.9,4483.8,2.401]
[1759614841363,0.5697,4483.9,4483.8,2.401]
[1759614841937,2.79990138,4483.9,4483.8,2.401]
[1759614845281,0.5697,4483.9,4483.8,2.401]
[1759614849890,0.1112,4483.9,4483.8,2.401]
[1759614850507,1e-08,4484.1,4483.8,24.48618695]
[1759614850683,1e-08,4484.1,4484.0,2.23015165]
[1759614850990,1e-08,4484.1,4484.0,9.58197416]
[1759614851189,1e-08,4484.1,4484.0,9.55967265]
[1759614851487,1e-08,4484.1,4484.0,11.42132692]
[1759614852595,1e-08,4484.1,4484.0,9.19117527]
[1759614853088,1e-08,4484.1,4484.0,11.42132692]
[1759614853590,1e-08,4484.1,4484.0,9.19117527]
[1759614854223,1e-08,4484.1,4484.0,11.42132692]
[1759614854496,1e-08,4484.1,4484.0,25.92132692]
[1759614854752,1e-08,4484.1,4484.0,26.20237527]
[1759614858683,1e-08,4484.1,4484.0,28.43252692]
[1759614859069,1e-08,4484.1,4484.0,26.20237527]
[1759614862974,1e-08,4484.1,4484.0,28.43252692]
[1759614866360,1e-08,4484.1,4484.0,26.20237527]
[1759614868680,1e-08,4484.1,4484.0,28.43252692]
[1759614878591,1e-08,4484.1,4484.0,28.43352692]
[1759614880410,1e-08,4484.1,4484.0,29.62746341]
[1759614885508,1e-08,4484.1,4484.0,32.13746341]
[1759614891117,1e-08,4484.1,4484.0,29.90731176]
[1759614891409,1e-08,4484.1,4484.0,28.04565749]
[1759614894227,1e-08,4484.1,4484.0,30.27580914]
[1759614894388,1e-08,4484.1,4484.0,25.64565749]
[1759614899442,1e-08,4484.1,4484.0,28.04565749]
[1759614907356,1e-08,4484.1,4484.0,30.27580914]
[1759614907649,1e-08,4484.1,4484.0,29.08187265]
[1759614907851,1e-08,4484.1,4484.0,26.851721]
[1759614908415,1e-08,4484.1,4484.0,29.08187265]
[1759614911854,1e-08,4484.1,4484.0,26.851721]
[1759614912063,1e-08,4484.1,4484.0,29.08187265]
[1759614917756,1e-08,4484.1,4484.0,26.851721]
[1759614918126,1e-08,4484.1,4484.0,29.08187265]
[1759614918558,1e-08,4484.1,4484.0,26.851721]
[1759614919074,1e-08,4484.1,4484.0,29.08187265]
[1759614920274,1e-08,4484.1,4484.0,26.851721]
[1759614923078,1e-08,4484.1,4484.0,29.08187265]
[1759614924579,1e-08,4484.1,4484.0,26.851721]
[1759614925584,1e-08,4484.1,4484.0,29.08187265]
[1759614927405,1e-08,4484.1,4484.0,26.851721]
[1759614928700,1e-08,4484.1,4484.0,26.484126]
[1759614928997,1e-08,4484.1,4484.0,26.075512]
[1759614929203,1e-08,4484.1,4484.0,25.697648]
[1759614930812,1e-08,4484.1,4484.0,26.90032973]
[1759614935737,1e-08,4484.1,4484.0,12.40032973]
[1759614936225,1e-08,4484.1,4484.0,26.90032973]
[1759614941504,1e-08,4484.1,4484.0,12.40032973]
[1759614941955,1e-08,4484.1,4484.0,26.90032973]
[1759614947354,1e-08,4484.1,4484.0,24.39032973]
[1759614947530,1e-08,4484.1,4484.0,26.89932973]
[1759614948773,1e-08,4484.1,4484.0,24.49932973]
[1759614950460,1e-08,4484.1,4484.0,21.99032973]
[1759614950668,1e-08,4484.1,4484.0,24.49932973]
[1759614953541,1e-08,4484.1,4484.0,26.89932973]
[1759614958988,1e-08,4484.1,4484.0,12.39932973]
[1759614959349,1e-08,4484.1,4484.0,26.89932973]
[1759614959547,1e-08,4484.1,4484.0,25.696648]
[1759614960803,1e-08,4484.1,4484.0,26.8993928]
[1759614962509,1e-08,4484.1,4484.0,12.3993928]
[1759614963011,1e-08,4484.1,4484.0,26.8993928]
[1759614965305,0.47350001,4484.1,4484.0,26.8993928]
[1759614965508,0.47350001,4484.1,4484.0,29.5568728]
[1759614966509,0.47350001,4484.1,4484.0,29.5294188]
[1759614967612,0.47350001,4484.1,4484.0,20.7239448]
[1759614967778,0.47350001,4484.1,4484.0,29.8876018]
[1759614967977,0.47350001,4484.1,4484.0,29.6647088]
[1759614968606,0.47350001,4484.1,4484.0,29.6191658]
[1759614968909,0.47350001,4484.1,4484.0,29.3049208]
[1759614969713,0.47350001,4484.1,4484.0,29.6061038]
[1759614969899,0.47350001,4484.1,4484.0,29.3049208]
[1759614970711,0.47350001,4484.1,4484.0,29.5744268]
[1759614971713,0.47350001,4484.1,4484.0,29.5655238]
[1759614971900,0.47350001,4484.1,4484.0,29.3049208]
[1759614972712,0.47350001,4484.1,4484.0,29.3049198]
[1759614973720,0.47350001,4484.1,4484.0,29.6715658]
[1759614974218,0.47350001,4484.1,4484.0,29.3055058]
[1759614974789,0.47350001,4484.1,4484.0,29.6258168]
[1759614975283,0.47350001,4484.1,4484.0,29.3055058]
[1759614975815,0.47350001,4484.1,4484.0,20.7239448]
[1759614976117,0.47350001,4484.1,4484.0,29.5757608]
[1759614976698,0.47350001,4484.1,4484.0,29.3023518]
[1759614977924,0.47350001,4484.1,4484.0,20.7239448]
[1759614978121,0.47350001,4484.1,4484.0,29.6142798]
[1759614978347,0.47350001,4484.1,4484.0,29.3023518]
[1759614979331,0.47350001,4484.1,4484.0,29.6154468]
[1759614979494,0.47350001,4484.1,4484.0,29.3023518]
[1759614980130,0.47350001,4484.1,4484.0,20.7239448]
[1759614980320,0.47350001,4484.1,4484.0,29.2985398]
[1759614981230,0.47350001,4484.1,4484.0,20.7239448]
[1759614981530,0.47350001,4484.1,4484.0,29.6103728]
[1759614982336,0.47350001,4484.1,4484.0,29.5799888]
[1759614982508,0.47350001,4484.1,4484.0,29.2985398]
[1759614983337,0.47350001,4484.1,4484.0,29.5962808]
[1759614983631,0.47350001,4484.1,4484.0,29.2940808]
[1759614984438,0.47350001,4484.1,4484.0,29.5846188]
[1759614984602,0.47350001,4484.1,4484.0,29.2940818]
[1759614985434,0.47350001,4484.1,4484.0,29.6542478]
[1759614986150,0.47350001,4484.1,4484.0,29.2940818]
[1759614987629,0.47350001,4484.1,4484.0,29.1736058]
[1759614988553,0.47350001,4484.1,4484.0,20.7239448]
[1759614988852,0.47350001,4484.1,4484.0,29.2868308]
[1759614989578,0.47350001,4484.1,4484.0,20.7239448]
[1759614989853,0.47350001,4484.1,4484.0,29.2868308]
[1759614990751,0.47350001,4484.1,4484.0,20.7239448]
[1759614990958,0.47350001,4484.1,4484.0,29.3032768]
[1759614991856,0.47350001,4484.1,4484.0,29.4521648]
[1759614992064,0.47350001,4484.1,4484.0,28.8228418]
[1759614992219,0.47350001,4484.1,4484.0,29.3149788]
[1759614993158,0.47350001,4484.1,4484.0,29.8480418]
[1759614993362,0.47350001,4484.1,4484.0,29.5502908]
[1759614993567,0.47350001,4484.1,4484.0,18.2149448]
[1759614993766,0.90150001,4484.1,4484.0,4.91]
[1759614993931,1.2193955,4484.1,4484.0,2.401]
[1759614994132,1.2193955,4484.1,4484.0,4.91]
[1759614995932,3.44949741,4484.1,4484.0,4.91]
[1759614999487,3.44949741,4484.1,4484.0,2.401]
[1759614999691,3.44949741,4484.1,4484.0,4.91]
[1759615000570,3.44949741,4484.1,4484.0,0.001]
[1759615000773,3.44949741,4484.1,4484.0,2.51]
[1759615000978,3.44949741,4484.1,4484.0,0.001]
[1759615001188,3.44949741,4484.1,4484.0,2.51]
[1759615010430,1.2193955,4484.1,4484.0,0.001]
[1759615010803,0.47350001,4484.1,4484.0,0.001]
[1759615011014,0.58470001,4484.1,4484.0,0.001]
[1759615011240,0.11120001,4484.1,4484.0,0.001]
[1759615020056,0.69590002,4484.1,4484.0,0.001]
[1759615025260,0.11120001,4484.1,4484.0,0.001]
[1759615036617,0.11120001,4484.1,4484.0,2.401]
[1759615051841,0.58230001,4484.1,4484.0,2.401]
[1759615053025,0.11120001,4484.1,4484.0,2.401]
[1759615085772,0.58630001,4484.1,4484.0,2.401]
[1759615094198,0.58630001,4484.1,4484.0,0.001]
[1759615094397,0.58630001,4484.1,4484.0,4.91]
[1759615113724,0.58630001,4484.1,4484.0,2.51]
[1759615115846,1.02210001,4484.1,4484.0,2.51]
[1759615116198,0.58630001,4484.1,4484.0,2.51]
[1759615116800,1.02210001,4484.1,4484.0,2.51]
[1759615118946,0.58630001,4484.1,4484.0,2.51]
[1759615120070,1.02210001,4484.1,4484.0,2.51]
[1759615121302,0.58630001,4484.1,4484.0,2.51]
[1759615121956,1.02210001,4484.1,4484.0,2.51]
[1759615125369,1.02210001,4484.1,4484.0,4.91]
[1759615126611,0.58630001,4484.1,4484.0,4.91]
[1759615127106,1.02210001,4484.1,4484.0,4.91]
[1759615128521,0.58630001,4484.1,4484.0,4.91]
[1759615129699,1.02210001,4484.1,4484.0,4.91]
[1759615131778,0.82210001,4484.1,4484.0,4.91]
[1759615132107,0.38630001,4484.1,4484.0,4.91]
[1759615142910,0.38830001,4484.1,4484.0,4.91]
[1759615158976,0.38830001,4484.1,4484.0,4.909]
[1759615160896,0.38830001,4484.1,4484.0,2.508]
[1759615162894,0.38830001,4484.1,4484.0,4.908]
[1759615176347,0.38830001,4484.1,4484.0,4.909]
[1759615180062,0.84150001,4484.1,4484.0,4.909]
[1759615180260,0.84150001,4484.1,4484.0,4.859]
[1759615186389,0.38830001,4484.1,4484.0,4.859]
[1759615199210,0.38830001,4484.1,4484.0,0.001]
[1759615199385,0.38830001,4484.1,4484.0,4.909]
[1759615200510,0.38830001,4484.1,4484.0,2.401]
[1759615200807,0.38830001,4484.1,4484.0,4.909]
[1759615201028,0.38830001,4484.1,4484.0,7.13915165]
[1759615201223,0.002,4484.1,4484.0,12.68343997]
[1759615201819,0.002,4484.1,4484.0,25.28909984]
[1759615202019,0.002,4484.1,4484.0,31.34091984]
[1759615202170,0.002,4484.1,4484.0,31.73121985]
[1759615202801,0.002,4484.1,4484.0,53.53349385]
[1759615205800,0.002,4484.1,4484.0,53.14319384]
[1759615206799,0.002,4484.1,4484.0,53.23240677]
[1759615212941,0.002,4484.1,4484.0,23.23240677]
[1759615213139,0.002,4484.1,4484.0,23.86600677]
[1759615213306,0.002,4484.1,4484.0,53.86600677]
[1759615213505,0.002,4484.1,4484.0,23.86600677]
[1759615213706,0.002,4484.1,4484.0,53.86600677]
[1759615213908,0.002,4484.1,4484.0,23.86600677]
[1759615214307,0.002,4484.1,4484.0,53.86600677]
[1759615215036,0.002,4484.1,4484.0,53.97720677]
[1759615220238,0.002,4484.1,4484.0,23.97720677]
[1759615220444,0.002,4484.1,4484.0,53.97720677]
[1759615221334,0.002,4484.1,4484.0,23.97720677]
[1759615221528,0.002,4484.1,4484.0,53.97720677]
[1759615222440,0.002,4484.1,4484.0,23.97720677]
[1759615222672,0.002,4484.1,4484.0,53.97720677]
[1759615223143,0.002,4484.1,4484.0,55.56827969]
[1759615224612,0.002,4484.1,4484.0,53.97720677]
[1759615226546,0.002,4484.1,4484.0,23.97720677]
[1759615226940,0.002,4484.1,4484.0,53.97720677]
[1759615227745,0.002,4484.3,4484.2,2.86365218]
[1759615227942,0.002,4484.3,4484.2,41.67098455]
[1759615228158,0.002,4484.3,4484.2,41.64868403]
[1759615228468,0.002,4484.3,4484.2,54.63847235]
[1759615237899,0.002,4484.3,4484.2,24.63847235]
[1759615238403,0.002,4484.3,4484.2,54.95617789]
[1759615238597,0.002,4484.6,4484.5,2.86350299]
[1759615238797,0.002,4484.8,4484.5,2.86350299]
[1759615238798,1e-08,4484.8,4484.6,3.0336]
[1759615238998,1e-08,4484.8,4484.7,37.79270158]
[1759615239211,1e-08,4484.8,4484.7,39.37194162]
[1759615239392,1e-08,4484.8,4484.7,53.96113445]
[1759615239698,1e-08,4484.8,4484.7,56.23875343]
[1759615240652,1e-08,4484.8,4484.7,41.78579043]
[1759615240857,0.46020001,4484.8,4484.7,30.06375536]
[1759615241158,0.46020001,4484.8,4484.7,33.04783336]
[1759615242192,0.46020001,4484.8,4484.7,33.51168536]
[1759615243114,0.46020001,4484.8,4484.7,38.20865536]
[1759615244023,0.46020001,4484.8,4484.7,24.00361536]
[1759615244183,0.46020001,4484.8,4484.7,38.37396836]
[1759615244387,0.46020001,4484.8,4484.7,38.03647936]
[1759615245401,0.46020001,4484.8,4484.7,38.35387436]
[1759615246358,0.46020001,4484.8,4484.7,38.30637936]
[1759615247390,0.46020001,4484.8,4484.7,24.00361536]
[1759615247564,0.46020001,4484.8,4484.7,38.56837636]
[1759615248710,0.46020001,4484.8,4484.7,38.57037636]
[1759615249231,0.46020001,4484.8,4484.7,35.57237636]
[1759615249525,0.46020001,4484.8,4484.7,24.00361536]
[1759615249711,0.46020001,4484.8,4484.7,34.79470536]
[1759615250930,0.46020001,4484.8,4484.7,35.69977536]
[1759615251738,0.46020001,4484.8,4484.7,41.45262736]
[1759615251940,1e-08,4484.8,4484.7,42.08622736]
[1759615252630,0.43260001,4484.8,4484.7,43.68776543]
[1759615252943,0.43260001,4484.8,4484.7,47.61309436]
[1759615253737,0.43260001,4484.8,4484.7,49.21463243]
[1759615253942,0.43260001,4484.8,4484.7,50.81663243]
[1759615254547,0.43260001,4484.8,4484.7,49.21509436]
[1759615254727,0.43260001,4484.8,4484.7,48.23943936]
[1759615255049,0.43260001,4484.8,4484.7,46.63943936]
[1759615255405,0.43260001,4484.8,4484.7,48.24097743]
[1759615256143,0.43260001,4484.8,4484.7,48.24643543]
[1759615256344,0.43260001,4484.8,4484.7,46.64489736]
[1759615256550,0.43260001,4484.8,4484.7,48.24643543]
[1759615256916,0.43260001,4484.8,4484.7,48.27643543]
[1759615257359,0.43260001,4484.8,4484.7,46.67489736]
[1759615258064,0.43260001,4484.8,4484.7,48.27643543]
[1759615258218,0.43260001,4484.8,4484.7,47.94503543]
[1759615258419,0.43260001,4484.8,4484.7,46.34349736]
[1759615258617,0.43260001,4484.8,4484.7,47.94503543]
[1759615258818,0.43260001,4484.8,4484.7,46.34349736]
[1759615259061,0.43260001,4484.8,4484.7,47.94503543]
[1759615259265,0.43260001,4484.8,4484.7,47.94603543]
[1759615259757,1e-08,4484.8,4484.7,46.34449736]
[1759615259962,1e-08,4484.8,4484.7,47.94603543]
[1759615260148,1e-08,4484.8,4484.7,51.73012543]
[1759615261277,1e-08,4484.8,4484.7,51.82057143]